bitfinex/quotes_ETHUSD_20241122
["timestamp","ask_amount","ask_price","bid_price","bid_amount"]
[1732317210923,1.206638,3309.6,3309.1,0.06660713]
[1732317211220,1.34416225,3310.4,3309.4,1.01105095]
[1732317211221,0.8824,3310.1,3309.4,1.01105095]
[1732317211418,0.0319113,3310.0,3309.6,1.31225095]
[1732317211651,1.206507,3309.9,3309.6,1.31225095]
[1732317211950,0.8824,3310.1,3309.7,0.06656197]
[1732317212111,1.206396,3310.2,3309.8,1.31225095]
[1732317212449,0.0319113,3310.6,3309.8,2.25565095]
[1732317212644,0.0319113,3310.6,3309.8,0.9434]
[1732317212845,0.0319113,3310.6,3309.9,0.06656197]
[1732317212846,1.2382763,3310.6,3309.9,0.06656197]
[1732317213448,0.55,3310.5,3309.9,0.06656197]
[1732317213621,0.0319113,3310.4,3309.9,0.06656197]
[1732317213827,0.55,3310.3,3309.8,0.9434]
[1732317214144,0.55,3310.1,3309.8,0.9434]
[1732317214325,0.0319113,3310.0,3309.8,0.9434]
[1732317214526,1.4982,3310.1,3309.1,0.9434]
[1732317214738,0.55,3309.9,3309.1,0.9434]
[1732317215036,0.55,3309.7,3309.2,0.06436543]
[1732317215237,0.9482,3310.1,3309.2,0.06436543]
[1732317215238,0.55,3309.5,3309.2,0.06436543]
[1732317215439,0.55,3309.3,3309.2,0.06436543]
[1732317215746,0.55,3309.5,3309.2,0.06436543]
[1732317215932,0.0319113,3309.4,3309.2,0.06436543]
[1732317216139,0.55,3309.3,3309.2,0.06436543]
[1732317216653,0.9482,3309.6,3309.2,0.06436543]
[1732317216654,0.5819113,3309.5,3309.2,0.06436543]
[1732317216836,0.5819113,3309.5,3308.5,0.9287]
[1732317217027,0.5819113,3309.5,3308.6,0.06216629]
[1732317218528,0.55,3309.3,3308.6,0.06216629]
[1732317218838,0.55,3309.3,3308.2,0.9287]
[1732317218839,0.55,3309.0,3308.2,0.9287]
[1732317219039,0.55,3308.8,3308.3,0.05975633]
[1732317219353,0.5819113,3308.8,3308.3,0.05975633]
[1732317219553,0.55,3308.6,3308.3,0.05975633]
[1732317219850,0.5819113,3308.8,3308.3,0.05975633]
[1732317220211,0.55,3308.6,3308.3,0.05975633]
[1732317220456,0.0319113,3308.5,3308.3,0.05975633]
[1732317220632,0.55,3308.4,3308.3,0.05975633]
[1732317220834,0.55,3308.4,3307.9,0.9287]
[1732317221056,0.55,3308.4,3308.0,0.05975633]
[1732317221229,0.55,3308.5,3308.0,0.05975633]
[1732317221431,0.55,3308.3,3308.0,0.05975633]
[1732317221619,0.55,3308.5,3308.0,0.05975633]
[1732317222212,0.5819113,3308.5,3308.0,0.05975633]
[1732317222624,0.5819113,3308.5,3307.9,0.9287]
[1732317222818,0.5819113,3308.5,3307.5,0.9287]
[1732317223243,0.5819113,3308.5,3307.6,0.05982407]
[1732317223427,0.55,3308.3,3307.6,0.05982407]
[1732317223763,0.9139,3308.4,3307.6,0.05982407]
[1732317223764,0.55,3308.1,3307.6,0.05982407]
[1732317224057,0.55,3307.9,3307.6,0.05982407]
[1732317224367,0.55,3308.2,3307.6,0.05982407]
[1732317224579,0.55,3308.0,3307.6,0.05982407]
[1732317225035,0.55,3308.2,3307.7,0.05985513]
[1732317225253,0.55,3308.0,3307.5,0.9287]
[1732317225438,0.55,3307.8,3307.5,0.9287]
[1732317225754,0.55,3307.8,3307.6,0.05985513]
[1732317227369,0.55,3307.7,3307.6,0.05985513]
[1732317228533,0.55,3307.8,3307.6,0.05985513]
[1732317228751,0.5819113,3307.7,3307.6,0.05985513]
[1732317229054,0.5819113,3307.7,3307.0,0.9287]
[1732317229055,0.55,3307.6,3307.0,0.9287]
[1732317229262,0.55,3307.4,3307.0,0.9287]
[1732317229468,0.55,3307.2,3307.0,0.9287]
[1732317233460,0.55,3307.2,3307.1,0.05625915]
[1732317235264,0.55,3308.1,3307.2,0.9466]
[1732317235464,0.8997,3308.2,3307.4,2.76933082]
[1732317235771,0.0319113,3308.5,3307.5,0.9466]
[1732317235772,0.8997,3308.4,3307.5,0.9466]
[1732317235954,0.0319113,3308.3,3307.5,1.00288175]
[1732317236664,0.8997,3308.4,3307.7,2.76933082]
[1732317236865,1.8136,3308.7,3307.8,0.9466]
[1732317237067,1.8455113,3308.7,3307.8,0.9466]
[1732317237283,1.8455113,3308.7,3307.9,0.05628175]
[1732317238703,1.8136,3308.7,3307.9,0.05628175]
[1732317238998,0.0319113,3309.3,3307.9,0.05628175]
[1732317238999,0.0319113,3309.3,3308.0,2.76933082]
[1732317239159,0.0319113,3309.3,3307.9,0.05628175]
[1732317239160,0.8997,3309.0,3308.3,2.76933082]
[1732317239365,1.206858,3309.0,3308.3,2.76933082]
[1732317239796,1.206858,3309.0,3308.4,0.05610803]
[1732317240303,0.55,3308.8,3308.4,0.05610803]
[1732317240601,0.55,3308.6,3307.9,0.9466]
[1732317240805,0.55,3308.6,3308.5,0.05610803]
[1732317240976,0.55,3308.6,3307.6,0.9466]
[1732317241506,0.55,3308.6,3307.7,0.05605861]
[1732317241977,1.206858,3309.0,3307.7,0.05605861]
[1732317241978,1.4497,3308.9,3308.0,3.9466]
[1732317242368,1.4497,3308.9,3308.1,0.05422105]
[1732317243077,5.37,3309.8,3308.3,3.9466]
[1732317243078,0.0319113,3308.8,3308.3,3.9466]
[1732317243284,0.0319113,3309.1,3308.3,3.9466]
[1732317243484,1.2387123,3309.1,3308.4,0.05418011]
[1732317244395,0.55,3309.0,3308.4,0.05418011]
[1732317244594,0.55,3308.8,3308.4,0.05418011]
[1732317245280,0.55,3308.6,3308.4,0.05418011]
[1732317245604,0.55,3308.9,3308.4,0.05418011]
[1732317246305,0.55,3308.7,3308.4,0.05418011]
[1732317246815,0.55,3309.0,3308.4,0.05418011]
[1732317247388,1.206801,3309.1,3308.5,0.9466]
[1732317247592,5.37,3310.3,3308.7,3.9466]
[1732317247593,0.8997,3309.8,3308.7,3.9466]
[1732317247819,1.206632,3309.6,3308.7,3.9466]
[1732317248110,0.8997,3309.8,3309.0,3.0]
[1732317248321,0.15718352,3310.9,3309.3,3.0]
[1732317248322,0.8997,3310.1,3309.3,3.0]
[1732317248519,5.37,3310.9,3309.3,3.0]
[1732317248520,0.8997,3310.5,3309.3,3.0]
[1732317248823,1.20643,3310.1,3309.4,0.9466]
[1732317249028,1.20643,3310.1,3309.6,3.0]
[1732317249390,0.0319113,3310.4,3309.6,3.0]
[1732317249612,1.206365,3310.3,3309.7,0.05411094]
[1732317250325,0.55,3310.1,3309.7,0.05411094]
[1732317250519,0.55,3309.9,3309.4,0.9466]
[1732317250727,0.55,3309.9,3309.5,0.05389927]
[1732317250885,0.0319113,3310.2,3309.5,0.05389927]
[1732317250886,0.55,3310.1,3309.5,0.05389927]
[1732317251220,0.55,3309.9,3309.5,0.05389927]
[1732317251523,0.55,3309.7,3309.5,0.05389927]
[1732317252277,0.55,3309.8,3309.5,0.05389927]
[1732317252477,0.55,3309.6,3309.5,0.05389927]
[1732317252894,0.55,3309.8,3309.1,0.9079]
[1732317253093,0.55,3309.8,3309.2,0.05389927]
[1732317253713,0.55,3310.1,3309.2,0.05389927]
[1732317253923,1.206365,3310.3,3309.7,0.9079]
[1732317254141,0.0319113,3310.5,3309.7,0.9079]
[1732317254297,1.206349,3310.4,3309.8,0.05380756]
[1732317254917,0.0319113,3310.3,3309.8,0.05380756]
[1732317255082,0.55,3310.2,3309.7,0.8579]
[1732317255284,0.55,3310.2,3309.8,0.05380756]
[1732317255508,0.55,3310.2,3309.7,0.8579]
[1732317255712,0.55,3310.0,3309.8,0.05380756]
[1732317255912,0.55,3310.0,3309.7,0.8579]
[1732317256095,0.55,3310.2,3309.8,0.05380756]
[1732317256282,0.55,3310.0,3309.7,0.8579]
[1732317256482,0.55,3310.0,3309.8,0.05380756]
[1732317256721,0.55,3310.2,3309.7,0.8579]
[1732317256920,0.55,3310.0,3309.8,0.05380756]
[1732317257108,0.55,3310.0,3309.7,0.8579]
[1732317257363,0.55,3310.3,3309.8,0.05380756]
[1732317257512,0.5819113,3310.3,3309.8,0.05380756]
[1732317257822,0.5819113,3310.3,3309.7,0.8579]
[1732317258023,0.5819113,3310.3,3309.9,0.05380756]
[1732317258185,0.5819113,3310.3,3309.7,0.8579]
[1732317258385,0.55,3310.3,3310.0,0.05380756]
[1732317258581,0.55,3310.8,3309.9,3.0]
[1732317258783,0.55,3310.5,3310.1,0.05372575]
[1732317259020,0.55,3310.3,3309.9,3.0]
[1732317259191,0.55,3310.3,3310.2,0.05193216]
[1732317259396,0.55,3310.3,3309.9,3.0]
[1732317259714,0.55,3310.5,3310.3,0.9021]
[1732317259889,0.55,3310.8,3310.4,0.05193296]
[1732317260092,1.4857,3310.8,3310.4,0.05193296]
[1732317260533,0.9357,3310.8,3310.4,0.05193296]
[1732317260729,0.0319113,3311.8,3310.4,0.05193296]
[1732317260730,0.9357,3311.7,3310.5,3.0]
[1732317260933,1.20604,3311.2,3310.6,0.05190899]
[1732317261154,0.0319113,3311.6,3310.6,0.05190899]
[1732317261585,1.2379353,3311.6,3310.6,0.05190899]
[1732317262294,1.2379353,3311.6,3310.7,0.9021]
[1732317262491,1.2379353,3311.6,3310.8,0.05168621]
[1732317263737,0.55,3311.5,3310.8,0.05168621]
[1732317263894,0.55,3311.3,3310.8,0.05168621]
[1732317264095,0.0319113,3311.2,3310.8,0.05168621]
[1732317264437,0.55,3311.3,3310.8,0.05168621]
[1732317264619,0.0319113,3311.2,3310.8,0.05168621]
[1732317264939,0.55,3311.3,3310.8,0.05168621]
[1732317265110,0.0319113,3311.2,3310.8,0.05168621]
[1732317265434,0.55,3311.1,3310.8,0.05168621]
[1732317265595,0.0319113,3311.0,3310.8,0.05168621]
[1732317265793,0.55,3311.1,3310.8,0.05168621]
[1732317266011,0.0319113,3311.0,3310.8,0.05168621]
[1732317266211,0.55,3310.9,3310.8,0.05168621]
[1732317266390,0.55,3310.9,3310.2,3.9021]
[1732317266605,0.55,3310.7,3310.2,3.9021]
[1732317266804,0.55,3310.5,3310.2,3.9021]
[1732317267005,0.0319113,3310.8,3310.2,3.9021]
[1732317267209,0.55,3310.7,3310.2,3.9021]
[1732317267410,0.55,3310.5,3310.2,3.9021]
[1732317267810,0.55,3310.7,3310.2,3.9021]
[1732317268010,0.55,3310.5,3310.2,3.9021]
[1732317268514,0.55,3310.8,3310.2,0.9021]
[1732317268722,0.55,3310.6,3310.2,0.9021]
[1732317269039,0.0319113,3310.5,3310.2,0.9021]
[1732317269224,0.55,3310.6,3310.2,0.9021]
[1732317269425,0.0319113,3310.5,3310.2,0.9021]
[1732317269806,0.55,3310.4,3310.2,0.9021]
[1732317270140,0.55,3310.6,3310.2,0.9021]
[1732317270342,0.55,3310.8,3310.2,0.9021]
[1732317270499,0.0319113,3310.7,3310.2,0.9021]
[1732317270698,0.55,3310.6,3310.2,0.9021]
[1732317270902,0.0319113,3310.5,3310.2,0.9021]
[1732317271223,0.55,3310.4,3309.8,0.9021]
[1732317271601,0.5819113,3310.4,3309.8,0.9021]
[1732317273836,0.5819113,3310.4,3309.4,0.7842]
[1732317278660,0.5819113,3310.4,3309.5,0.05178208]
[1732317280038,0.55,3310.6,3309.7,3.0]
[1732317280251,0.8392113,3310.7,3309.9,0.7842]
[1732317280411,0.8073,3310.9,3310.1,3.0]
[1732317280817,0.8392113,3311.5,3310.4,0.7842]
[1732317281147,0.8392113,3311.5,3310.5,0.05177362]
[1732317282453,0.55,3311.4,3310.5,0.05177362]
[1732317286229,0.5819113,3311.4,3310.5,0.05177362]
[1732317290871,0.55,3311.2,3310.5,0.05177362]
[1732317291154,0.55,3310.9,3309.8,0.7842]
[1732317291353,1.206024,3311.6,3310.6,0.05162417]
[1732317291354,0.55,3310.7,3310.6,0.05162417]
[1732317291555,0.55,3310.7,3309.8,0.7842]
[1732317291764,0.55,3310.5,3309.8,0.7842]
[1732317292072,0.55,3310.5,3309.9,0.05162417]
[1732317292270,0.55,3310.6,3309.9,0.05162417]
[1732317292576,0.55,3310.6,3310.0,3.51943082]
[1732317292724,0.55,3310.6,3310.1,3.0]
[1732317293057,0.7859,3311.2,3310.2,0.7501]
[1732317293256,0.0319113,3311.1,3310.2,0.80172417]
[1732317293474,1.206024,3311.6,3310.2,0.80172417]
[1732317293475,0.8178113,3311.5,3310.2,0.80172417]
[1732317293673,0.7859,3311.5,3310.4,3.7501]
[1732317293963,0.7859,3311.5,3310.1,0.66012637]
[1732317293964,1.206024,3311.6,3310.7,3.7501]
[1732317294561,1.206024,3311.6,3310.8,0.05162417]
[1732317294748,0.0319113,3311.5,3310.8,0.05162417]
[1732317295524,0.55,3311.4,3310.8,0.05162417]
[1732317295724,0.55,3311.2,3310.8,0.05162417]
[1732317296364,0.55,3311.4,3310.8,0.05162417]
[1732317297523,0.55,3311.5,3310.8,0.05162417]
[1732317297861,0.55,3311.3,3310.8,0.05162417]
[1732317298065,0.5819113,3311.3,3310.8,0.05162417]
[1732317298768,0.55,3311.3,3310.8,0.05162417]
[1732317299256,0.55,3311.5,3310.8,0.05162417]
[1732317299459,0.52599218,3311.5,3310.8,0.05162417]
[1732317300054,0.0319113,3311.4,3310.8,0.05162417]
[1732317300257,0.52599218,3311.5,3310.8,0.05162417]
[1732317300452,0.52599218,3311.5,3310.9,0.7684]
[1732317300774,0.55790348,3311.5,3311.0,0.05165237]
[1732317303129,0.52599218,3311.5,3311.0,0.05165237]
[1732317303330,0.52599218,3311.5,3311.1,0.7684]
[1732317303530,1.206024,3311.6,3311.1,0.7684]
[1732317303767,0.7595,3312.4,3311.3,0.7684]
[1732317303970,1.205722,3311.9,3311.3,0.7684]
[1732317304391,1.205722,3311.9,3311.4,0.05165237]
[1732317304737,1.205722,3311.9,3311.3,0.7684]
[1732317304940,0.55,3311.8,3311.4,0.05165237]
[1732317305143,0.55,3311.8,3311.3,0.7684]
[1732317305346,0.55,3311.8,3311.4,0.05165237]
[1732317305640,1.3381113,3311.8,3311.1,0.7673]
[1732317305831,1.3381113,3311.8,3311.5,0.05165237]
[1732317306033,1.3381113,3311.8,3311.1,0.7673]
[1732317306246,1.3381113,3311.8,3311.6,0.05165237]
[1732317306445,1.3381113,3311.8,3311.1,0.7673]
[1732317306666,1.3381113,3311.8,3311.7,0.05165237]
[1732317306847,1.3381113,3311.8,3311.1,0.7673]
[1732317307352,1.3381113,3311.8,3311.2,0.05165237]
[1732317307786,0.55,3311.8,3311.2,0.05165237]
[1732317308263,0.55,3311.8,3311.3,0.7673]
[1732317308463,1.205722,3311.9,3311.4,0.7673]
[1732317308638,1.205722,3311.9,3311.4,0.81878888]
[1732317308839,0.55,3312.4,3311.6,0.7673]
[1732317309072,0.55,3312.2,3311.6,0.7673]
[1732317309275,0.7562,3312.6,3311.6,0.7673]
[1732317309276,0.55,3312.0,3311.6,0.7673]
[1732317309442,0.55,3312.0,3311.7,0.05148888]
[1732317309643,0.55,3312.1,3311.7,0.05148888]
[1732317310016,0.55,3311.9,3311.7,0.05148888]
[1732317310475,0.7562,3312.3,3311.7,0.05148888]
[1732317310476,0.55,3312.2,3311.7,0.05148888]
[1732317311477,0.55,3312.2,3311.7,0.44848874]
[1732317311663,0.55,3312.2,3311.8,0.7705]
[1732317312068,0.55,3312.2,3311.9,0.05143394]
[1732317312377,0.7562,3312.3,3311.9,0.05143394]
[1732317312881,0.5819113,3312.2,3311.9,0.05143394]
[1732317313379,0.55,3312.2,3311.9,0.05143394]
[1732317313552,0.55,3312.2,3311.6,0.7705]
[1732317313756,0.55,3312.2,3311.7,0.05143394]
[1732317313979,0.7562,3312.3,3311.7,0.05143394]
[1732317313980,0.55,3312.0,3311.7,0.05143394]
[1732317314272,0.55,3311.8,3311.7,0.05143394]
[1732317314474,0.55,3311.8,3311.3,0.7705]
[1732317314679,0.55,3312.1,3311.7,0.05142408]
[1732317314977,0.55,3311.9,3311.8,0.05142408]
[1732317315274,1.5125,3312.3,3311.8,0.05142408]
[1732317315275,0.55,3312.1,3311.8,0.05142408]
[1732317315574,0.55,3311.9,3311.3,0.7705]
[1732317315788,1.3063,3311.7,3310.7,3.7705]
[1732317316081,0.55,3311.5,3310.7,3.7705]
[1732317316245,0.55,3311.3,3310.7,4.42448308]
[1732317316444,0.0319113,3311.4,3310.7,4.42448308]
[1732317316664,0.55,3311.5,3310.7,4.42448308]
[1732317316871,0.55,3311.6,3310.7,4.42448308]
[1732317317193,0.55,3311.6,3310.8,0.71938139]
[1732317317479,0.55,3311.9,3310.8,0.71938139]
[1732317317710,0.5819113,3311.9,3310.8,0.71938139]
[1732317319383,0.5819113,3311.9,3310.7,0.7705]
[1732317319590,0.5819113,3311.9,3310.7,3.7705]
[1732317321407,0.55,3311.5,3310.4,0.8223]
[1732317322613,0.55,3311.3,3310.4,0.8223]
[1732317322910,0.55,3311.1,3310.4,0.8223]
[1732317323122,0.0319113,3311.4,3310.4,0.8223]
[1732317323274,0.55,3311.3,3310.5,0.38223]
[1732317323474,0.55,3311.1,3310.6,0.04979752]
[1732317323675,0.0319113,3311.0,3310.6,0.04979752]
[1732317324087,0.55,3310.9,3310.6,0.04979752]
[1732317324305,0.78,3311.7,3310.6,0.04979752]
[1732317324516,0.55,3311.6,3310.6,0.04979752]
[1732317324674,0.55,3311.6,3310.4,0.85250321]
[1732317325014,0.55,3311.6,3310.5,0.43508589]
[1732317325220,0.55,3311.6,3310.5,0.46528855]
[1732317325418,0.55,3311.6,3310.5,0.43508589]
[1732317326284,0.78,3311.7,3310.6,3.55563399]
[1732317326472,0.7582,3312.1,3310.8,0.7561]
[1732317326670,0.0319113,3312.0,3310.8,0.7561]
[1732317326874,0.0319113,3312.0,3310.9,0.04982006]
[1732317327074,0.7582,3312.1,3311.0,0.7561]
[1732317327319,0.0319113,3312.0,3311.1,0.04979892]
[1732317328414,0.55,3311.9,3311.1,0.04979892]
[1732317328612,0.55,3311.7,3311.1,0.04979892]
[1732317328923,0.55,3311.5,3311.1,0.04979892]
[1732317329232,0.0319113,3311.8,3311.1,0.04979892]
[1732317329522,0.55,3311.7,3311.1,0.04979892]
[1732317329720,0.55,3312.0,3311.1,0.04979892]
[1732317331481,0.0319113,3312.6,3311.2,0.7561]
[1732317331482,0.7582,3312.4,3311.2,0.7561]
[1732317331715,0.7582,3312.4,3311.4,0.8173]
[1732317332019,0.806,3312.7,3311.6,3.0]
[1732317332228,0.806,3312.9,3311.7,1.39920847]
[1732317332431,0.806,3312.9,3311.9,0.8173]
[1732317332781,0.806,3312.9,3312.0,0.04975384]
[1732317334289,0.5819113,3312.8,3312.0,0.04975384]
[1732317336901,0.5819113,3312.8,3311.9,0.8173]
[1732317337290,0.5819113,3312.8,3312.0,0.04975384]
[1732317343185,0.5819113,3312.8,3311.4,3.0]
[1732317343186,0.55,3312.6,3311.6,0.7825]
[1732317343390,1.3618,3312.4,3311.7,0.04965804]
[1732317343619,0.55,3312.1,3311.3,0.7825]
[1732317343824,0.55,3311.7,3310.5,0.7825]
[1732317344037,0.55,3311.5,3311.4,0.04463235]
[1732317344325,0.55,3311.5,3310.5,0.7825]
[1732317344691,0.55,3311.3,3310.6,0.04314568]
[1732317344890,3.35067896,3312.0,3310.5,0.7825]
[1732317344891,0.55,3311.1,3310.5,0.7825]
[1732317345096,0.55,3310.9,3310.5,0.7825]
[1732317345293,0.55,3310.9,3310.6,0.04314568]
[1732317345595,0.55,3311.0,3310.2,0.7825]
[1732317345821,0.55,3311.0,3310.3,0.04314568]
[1732317346193,0.55,3311.0,3310.2,0.7825]
[1732317346541,0.55,3311.0,3310.3,0.04314568]
[1732317346690,0.55,3311.1,3310.3,0.04314568]
[1732317346892,0.55,3311.1,3310.2,0.7825]
[1732317347334,0.55,3311.1,3310.3,0.04314568]
[1732317347532,0.55,3311.1,3310.4,0.7825]
[1732317347847,0.8118,3312.1,3310.4,3.55183082]
[1732317348136,0.0319113,3312.0,3310.6,0.7825]
[1732317348695,0.0319113,3312.0,3310.8,0.7825]
[1732317349347,0.0319113,3312.0,3310.9,0.04247901]
[1732317349651,2.80124212,3312.0,3310.9,0.04247901]
[1732317349795,0.0319113,3312.0,3310.9,0.04247901]
[1732317350139,0.0319113,3312.0,3310.8,0.7825]
[1732317350437,0.55,3311.9,3310.9,0.04259313]
[1732317350638,0.55,3311.7,3310.9,0.04259313]
[1732317350936,0.55,3311.5,3310.9,0.04259313]
[1732317351244,0.8118,3311.8,3310.9,0.04259313]
[1732317351245,0.55,3311.3,3310.9,0.04259313]
[1732317351475,0.55,3311.6,3310.5,0.7825]
[1732317351641,0.55,3311.4,3310.5,0.7825]
[1732317351837,0.55,3311.2,3310.6,0.04259313]
[1732317352279,0.55,3311.0,3310.6,0.04259313]
[1732317352429,0.0319113,3310.9,3310.6,0.04259313]
[1732317352636,0.55,3311.0,3310.6,0.04259313]
[1732317355532,0.0319113,3310.9,3310.6,0.04259313]
[1732317355763,0.0319113,3310.9,3310.5,0.7825]
[1732317356153,0.0319113,3310.9,3310.6,0.04277066]
[1732317356469,0.55,3310.8,3310.2,0.7716]
[1732317356667,0.0319113,3310.9,3310.2,0.7716]
[1732317356668,0.55,3310.9,3310.2,0.7716]
[1732317356879,0.55,3311.0,3310.3,0.04284535]
[1732317359535,0.55,3310.8,3310.3,0.04284535]
[1732317359976,0.55,3310.8,3310.2,0.7716]
[1732317360282,0.0319113,3310.7,3310.2,0.7716]
[1732317360466,0.0319113,3310.7,3310.3,0.04285099]
[1732317360984,0.8139,3311.1,3310.2,0.7716]
[1732317360985,0.55,3310.9,3310.4,0.04285099]
[1732317361140,0.55,3311.0,3310.4,0.04285099]
[1732317361340,0.7944,3311.5,3310.5,0.04288483]
[1732317361341,0.55,3311.3,3310.5,0.04288483]
[1732317362550,0.5819113,3311.3,3310.5,0.04288483]
[1732317364957,0.55,3311.0,3310.5,0.04288483]
[1732317365153,0.55,3310.8,3310.6,0.04284113]
[1732317365368,0.5819113,3310.7,3310.6,0.04284113]
[1732317365558,0.55,3310.6,3309.3,2.76933082]
[1732317365754,0.55,3310.4,3309.4,0.7614]
[1732317365955,0.7561,3311.2,3309.4,0.79161186]
[1732317366157,0.55,3311.0,3309.7,0.7614]
[1732317366382,0.55,3310.8,3309.7,0.7614]
[1732317366559,0.55,3310.6,3309.7,3.7614]
[1732317366774,0.55,3310.4,3309.7,3.7614]
[1732317367079,0.55,3310.2,3309.7,3.7614]
[1732317367573,0.55,3310.5,3309.7,3.7614]
[1732317367885,0.55,3310.3,3309.7,3.7614]
[1732317368091,0.55,3310.1,3309.7,3.7614]
[1732317368382,0.55,3310.1,3309.7,0.7614]
[1732317368595,0.55,3310.1,3309.8,0.04298072]
[1732317368786,0.55,3310.4,3309.7,0.7614]
[1732317368995,0.55,3310.4,3309.8,0.04298072]
[1732317369165,0.55,3310.5,3309.8,0.04298072]
[1732317369361,0.0319113,3310.4,3309.8,0.04298072]
[1732317369565,0.55,3310.3,3309.8,0.04298072]
[1732317369894,0.55,3310.1,3309.9,0.04298777]
[1732317370088,0.5819113,3310.0,3309.9,0.04298777]
[1732317370386,0.55,3309.9,3309.3,0.7614]
[1732317370599,0.55,3309.7,3309.3,0.7614]
[1732317370761,0.7561,3310.0,3309.3,0.7614]
[1732317370762,0.0319113,3309.6,3309.3,0.7614]
[1732317371094,0.55,3309.9,3309.3,0.7614]
[1732317371095,0.55,3309.7,3309.3,0.7614]
[1732317371391,0.55,3309.5,3309.3,0.7614]
[1732317371595,0.55,3309.8,3309.3,0.7614]
[1732317371793,0.55,3309.6,3309.3,0.7614]
[1732317372179,0.55,3309.8,3309.3,0.7614]
[1732317372489,0.55,3309.6,3309.3,0.7614]
[1732317372989,0.55,3309.9,3309.3,0.7614]
[1732317373176,0.55,3309.6,3309.3,0.7614]
[1732317373552,0.55,3309.4,3309.0,0.7988]
[1732317374054,0.55,3309.4,3308.7,0.7988]
[1732317374676,0.55,3309.2,3308.7,0.7988]
[1732317374880,0.55,3309.0,3308.4,0.7988]
[1732317375693,0.55,3308.8,3308.4,0.7988]
[1732317375902,0.55,3309.2,3308.4,0.7988]
[1732317376605,0.55,3309.3,3308.5,3.03022568]
[1732317376751,0.55,3309.2,3308.6,0.65983565]
[1732317376956,0.7788,3309.7,3308.7,0.7988]
[1732317377606,0.7788,3310.1,3308.9,0.7988]
[1732317377814,0.0319113,3310.0,3308.9,0.7988]
[1732317378794,0.55,3309.9,3308.9,0.7988]
[1732317379090,0.55,3309.7,3308.9,0.7988]
[1732317379258,0.55,3309.5,3308.9,0.7988]
[1732317379453,0.0319113,3309.4,3308.9,0.7988]
[1732317379688,0.0319113,3309.8,3308.9,0.7988]
[1732317379880,0.55,3309.7,3308.9,0.7988]
[1732317380084,0.55,3309.5,3308.9,0.7988]
[1732317381594,0.55,3309.3,3308.9,0.7988]
[1732317381794,0.55,3309.5,3308.9,0.7988]
[1732317383473,0.7788,3310.1,3308.9,0.7988]
[1732317383474,0.55,3309.3,3309.0,0.04054038]
[1732317388196,0.0319113,3310.0,3309.0,0.04054038]
[1732317388770,0.55,3309.9,3309.0,0.04054038]
[1732317388974,0.55,3309.7,3309.0,0.04054038]
[1732317389186,0.5819113,3309.9,3309.0,0.04054038]
[1732317389374,0.55,3309.7,3309.0,0.04054038]
[1732317389575,0.0319113,3309.6,3309.0,0.04054038]
[1732317389910,0.55,3309.7,3309.0,0.04054038]
[1732317390294,0.55,3309.5,3309.0,0.04054038]
[1732317390619,1.3288,3309.5,3309.0,0.04054038]
[1732317391988,0.55,3309.3,3309.0,0.04054038]
[1732317392773,0.55,3309.4,3309.0,0.04054038]
[1732317395687,0.55,3309.2,3309.0,0.04054038]
[1732317396695,0.5819113,3309.4,3309.0,0.04054038]
[1732317397114,0.55,3309.4,3309.0,0.04054038]
[1732317399482,0.8082,3309.9,3309.0,0.04054038]
[1732317399682,0.55,3309.8,3309.0,0.04054038]
[1732317399931,0.55,3309.9,3309.1,0.7598]
[1732317400092,0.55,3309.9,3309.1,0.80032203]
[1732317400611,0.0319113,3310.0,3309.1,0.80032203]
[1732317400612,0.55,3310.0,3309.1,0.80032203]
[1732317400787,0.7788,3310.2,3309.2,1.0612]
[1732317400989,0.8082,3310.4,3309.3,1.0612]
[1732317401315,1.6164,3310.4,3309.3,1.10171074]
[1732317402224,0.55,3310.2,3309.3,1.10171074]
[1732317402405,0.55,3310.0,3309.3,1.10171074]
[1732317403513,0.5819113,3310.2,3309.3,1.10171074]
[1732317403707,0.55,3310.2,3309.3,1.10171074]
[1732317403933,0.55,3310.0,3309.3,1.10171074]
[1732317404430,0.55,3310.2,3309.3,1.10171074]
[1732317405008,0.55,3310.2,3309.3,0.34191074]
[1732317405202,1.390111,3310.5,3309.4,0.7598]
[1732317405735,0.55,3310.5,3309.5,3.3418529]
[1732317405904,0.55,3310.5,3309.6,0.7849]
[1732317406420,0.7591,3311.2,3309.7,0.8253529]
[1732317406616,0.0319113,3311.1,3309.7,0.8253529]
[1732317406822,0.7591,3311.0,3309.8,2.76933082]
[1732317407027,0.7910113,3311.2,3309.9,3.28097837]
[1732317407205,0.7910113,3311.2,3310.0,0.7849]
[1732317408246,0.55,3311.1,3310.1,0.04030761]
[1732317408546,0.55,3310.9,3310.1,0.04030761]
[1732317408710,0.55,3310.7,3310.1,0.04030761]
[1732317409032,0.55,3310.7,3310.1,0.45092621]
[1732317409429,0.55,3310.9,3310.1,0.45092621]
[1732317409627,0.55,3310.7,3310.1,0.45092621]
[1732317409930,0.7591,3311.6,3310.6,0.7849]
[1732317410324,1.205983,3311.7,3310.8,0.7849]
[1732317410504,1.205983,3311.7,3310.8,0.81510088]
[1732317410703,0.0319113,3312.1,3311.0,0.7849]
[1732317410905,1.2378163,3312.1,3311.0,0.7849]
[1732317411322,1.2378163,3312.1,3311.1,0.04019622]
[1732317411518,0.55,3312.0,3311.1,0.04019622]
[1732317411736,0.55,3311.8,3311.1,0.04019622]
[1732317412043,0.55,3311.6,3310.7,0.759]
[1732317412199,0.55,3311.4,3310.4,0.759]
[1732317412518,0.55,3311.2,3310.4,0.759]
[1732317412847,0.55,3311.0,3310.4,0.759]